bitfinex-derivatives/quotes_BNBF0:USTF0_20250425
["timestamp","ask_amount","ask_price","bid_price","bid_amount"]
[1745581888629,1.37556569,605.97,604.81,0.30343668]
[1745581888830,1.37556569,605.96,604.81,0.30343668]
[1745581889129,2.51605648,605.95,604.81,0.30343668]
[1745581889332,1.37556569,605.94,604.81,0.30343668]
[1745581889527,2.51605648,605.93,604.81,0.30343668]
[1745581889726,1.37556569,605.92,604.81,0.30343668]
[1745581889930,1.37556569,605.91,604.7,0.30343668]
[1745581890128,1.37556569,605.9,604.8,0.28746551]
[1745581890333,1.37556569,605.89,604.81,0.30343668]
[1745581890636,1.37556569,605.88,604.82,0.30343668]
[1745581890833,2.51605648,605.87,604.81,1.0505215]
[1745581891034,1.37556569,605.86,604.81,1.0505215]
[1745581891230,2.51605648,605.85,604.81,1.0505215]
[1745581891430,1.37556569,605.84,604.81,1.0505215]
[1745581891728,2.51605648,605.83,604.81,1.0505215]
[1745581891927,1.37556569,605.82,604.81,1.0505215]
[1745581892132,1.37556569,605.81,604.81,1.0505215]
[1745581892329,1.37556569,605.8,604.81,1.0505215]
[1745581892632,2.51605648,605.79,604.81,1.0505215]
[1745581892833,2.51605648,605.79,604.56,0.819]
[1745581892834,1.37556569,605.78,604.69,1.0505215]
[1745581893134,2.51605648,605.77,604.8,0.28749282]
[1745581893433,1.37556569,605.76,604.69,1.0505215]
[1745581893634,2.51605648,605.75,604.69,1.0505215]
[1745581893834,1.37556569,605.74,604.69,1.0505215]
[1745581894134,1.37608609,605.73,604.7,0.2875237]
[1745581894334,2.51657688,605.72,604.7,0.2875237]
[1745581894535,1.37608609,605.71,604.7,0.2875237]
[1745581894735,2.51657688,605.7,604.7,0.2875237]
[1745581895036,1.37608609,605.69,604.7,0.2875237]
[1745581895237,1.37608609,605.68,604.7,0.2875237]
[1745581895533,2.51657688,605.67,604.71,0.30347488]
[1745581895739,2.51657688,605.66,604.71,0.30347488]
[1745581895938,1.37608609,605.65,604.71,0.30347488]
[1745581896137,2.51657688,605.64,604.7,0.2875237]
[1745581896333,1.37608609,605.63,604.71,0.30347607]
[1745581896634,2.51677767,605.62,604.71,0.30347607]
[1745581896837,1.37628688,605.61,604.71,0.30347607]
[1745581897139,1.37628688,605.6,604.71,0.30347607]
[1745581897334,1.37628688,605.59,604.71,0.30347607]
[1745581897534,1.37628688,605.58,604.7,0.2875237]
[1745581897737,1.37628688,605.57,604.7,0.2875237]
[1745581897939,1.37628688,605.56,604.7,0.2875237]
[1745581898243,1.37628688,605.55,604.7,0.2875237]
[1745581898437,2.51677767,605.54,604.71,0.30348031]
[1745581898637,1.37628688,605.53,604.7,0.2875237]
[1745581898940,1.37628688,605.52,604.62,1.0505215]
[1745581899244,2.51677767,605.51,604.62,1.0505215]
[1745581899439,1.37628688,605.5,604.62,1.0505215]
[1745581899639,1.37628688,605.49,604.62,1.0505215]
[1745581899842,2.51677767,605.48,604.62,1.0505215]
[1745581900042,1.37628688,605.47,604.63,0.28763302]
[1745581900242,1.37628688,605.46,604.63,0.28763302]
[1745581900437,2.51677767,605.45,604.63,0.28763302]
[1745581900640,1.37628688,605.44,604.63,0.28763302]
[1745581900842,1.37628688,605.43,604.63,0.28763302]
[1745581901142,1.37628688,605.42,604.63,0.28763302]
[1745581901339,1.14049079,605.43,604.63,0.28763302]
[1745581901543,2.51229244,605.42,604.63,0.28763302]
[1745581901740,1.37180165,605.41,604.61,1.0505215]
[1745581901940,2.51229244,605.41,604.63,0.28762351]
[1745581902245,2.51229244,605.4,604.63,0.28762351]
[1745581902545,1.37180165,605.39,604.63,0.28762351]
[1745581902745,2.51229244,605.38,604.63,0.28762351]
[1745581902947,1.37180165,605.37,604.63,0.28762351]
[1745581903245,1.37130327,605.36,604.63,0.28762351]
[1745581903443,1.37130327,605.35,604.63,0.28762351]
[1745581903841,1.14049079,605.34,604.63,0.28762351]
[1745581904042,1.37130327,605.33,604.63,0.28762351]
[1745581904246,1.14049079,605.32,604.63,0.28762351]
[1745581904445,1.14049079,605.31,604.63,0.28762351]
[1745581904746,1.14049079,605.31,604.56,0.819]
[1745581905144,1.14049079,605.31,604.63,0.28764134]
[1745581905348,1.14049079,605.3,604.63,0.28764134]
[1745581906145,1.14049079,605.29,604.63,0.28764134]
[1745581906951,1.14049079,605.28,604.63,0.28764134]
[1745581907756,1.14049079,605.27,604.54,0.30348869]
[1745581907955,1.14049079,605.26,604.63,0.28764728]
[1745581908355,1.14049079,605.26,604.54,0.30348869]
[1745581908651,1.14049079,605.25,604.54,0.30348869]
[1745581909056,1.14049079,605.24,604.55,0.28768176]
[1745581909558,1.14049079,605.23,604.55,0.28768176]
[1745581910058,1.14049079,605.22,604.55,0.28768176]
[1745581910759,1.14049079,605.21,604.54,0.30348869]
[1745581911155,1.14049079,605.2,604.54,0.30348869]
[1745581911751,1.14049079,605.19,604.54,0.30348869]
[1745581912058,1.14049079,605.18,604.55,0.28769841]
[1745581912259,1.14049079,605.17,604.55,0.28769841]
[1745581912653,1.14049079,605.16,604.55,0.28769841]
[1745581913257,1.14049079,605.15,604.55,0.28769841]
[1745581913659,1.14049079,605.15,604.54,0.30348869]
[1745581914056,1.14049079,605.14,604.55,0.28767225]
[1745581914355,1.14049079,605.13,604.55,0.28767225]
[1745581914958,1.14049079,605.12,604.55,0.28767225]
[1745581915361,1.14049079,605.11,604.55,0.28767225]
[1745581915658,1.14049079,605.1,604.55,0.28767225]
[1745581916259,1.14049079,605.09,604.55,0.28767225]
[1745581916761,1.14049079,605.09,604.54,0.30348869]
[1745581916958,1.25820987,606.91,604.54,0.30348869]
[1745581916959,1.14049079,605.08,604.55,0.28767939]
[1745581917359,1.14049079,605.07,604.55,0.28767939]
[1745581918162,1.14049079,605.06,604.55,0.28767939]
[1745581918662,1.14049079,605.05,604.55,0.28767939]
[1745581919561,0.28767939,606.21,604.55,0.28767939]
[1745581919763,1.36618896,606.2,604.54,0.30348869]
[1745581919962,1.36618896,606.19,604.54,0.30348869]
[1745581920167,1.25820987,606.98,604.55,0.2874477]
[1745581920168,2.49913783,606.18,604.55,0.2874477]
[1745581920372,2.49913783,606.17,604.55,0.2874477]
[1745581920568,1.36618896,606.16,604.55,0.2874477]
[1745581920768,1.36618896,606.15,604.55,0.2874477]
[1745581921069,1.36618896,606.14,604.55,0.2874477]
[1745581921266,1.36618896,606.13,604.55,0.2874477]
[1745581921463,1.36584004,606.12,604.55,0.2874477]
[1745581921668,1.36584004,606.11,604.55,0.2874477]
[1745581921865,2.49878891,606.1,604.55,0.2874477]
[1745581922066,1.36584004,606.09,604.55,0.2874477]
[1745581922272,1.13294887,606.1,604.55,0.2874477]
[1745581922273,1.36584004,606.08,604.55,0.2874477]
[1745581922574,2.49878891,606.07,604.55,0.2874477]
[1745581922877,1.36584004,606.06,604.1,1.0505215]
[1745581923077,1.36584004,606.05,604.55,0.28758786]
[1745581923278,1.36584004,606.04,604.1,1.0505215]
[1745581923470,1.36584004,606.03,604.28,0.30359662]
[1745581923671,1.36584004,606.02,604.28,0.30359662]
[1745581923875,1.36584004,606.01,604.28,0.30359662]
[1745581924073,1.36584004,606.0,604.29,0.28757716]
[1745581924272,1.36584004,605.99,604.3,0.30359662]
[1745581924473,1.36584004,605.98,604.3,0.30359662]
[1745581924674,2.49878891,605.97,604.3,0.30359662]
[1745581924873,1.36584004,605.96,604.3,0.30359662]
[1745581925071,1.36584004,605.95,604.3,0.30359662]
[1745581925273,1.36584004,605.94,604.3,0.30359662]
[1745581925473,1.36584004,605.93,604.3,0.30359662]
[1745581925677,1.36584004,605.92,604.3,0.30359662]
[1745581925974,2.49878891,605.91,604.3,0.30359662]
[1745581926177,1.36584004,605.9,604.3,0.30359662]
[1745581926379,2.49878891,605.89,604.3,0.30359662]
[1745581926578,1.3662347,605.88,604.3,0.30359662]
[1745581926778,1.3662347,605.87,604.3,0.30359662]
[1745581926979,1.3662347,605.86,604.3,1.50359662]
[1745581927176,1.3662347,605.85,604.31,0.30359662]
[1745581927373,2.49918357,605.84,604.31,0.30359662]
[1745581927579,1.3662347,605.83,604.31,0.30359662]
[1745581927780,1.3662347,605.82,604.31,0.30359662]
[1745581927980,1.3662347,605.81,604.31,0.30359662]
[1745581928180,0.28757597,606.35,604.31,0.30359662]
[1745581928181,2.49918357,605.8,604.31,0.30359662]
[1745581928381,1.3662347,605.79,604.31,0.30359662]
[1745581928577,1.3662347,605.78,604.31,0.30359662]
[1745581928776,1.13294887,605.8,604.31,0.30359662]
[1745581928777,1.3662347,605.77,604.31,0.30359662]
[1745581929081,1.25820987,607.24,604.31,0.30359662]
[1745581929082,2.49918357,605.76,604.31,0.30359662]
[1745581929282,1.3662347,605.75,604.31,0.30359662]
[1745581929683,1.13294887,605.74,604.31,0.30359662]
[1745581929885,1.3662347,605.73,604.31,0.30359662]
[1745581930284,1.13294887,605.72,604.31,0.30359662]
[1745581930486,1.3662347,605.71,604.31,0.30359662]
[1745581930886,1.13294887,605.7,604.31,0.30359662]
[1745581931082,1.3662347,605.69,604.31,0.30359662]
[1745581931282,1.13294887,605.68,604.31,0.30359662]
[1745581931484,1.3662347,605.67,604.31,0.30359662]
[1745581931686,2.49918357,605.67,604.31,0.30359662]
[1745581931884,1.3662347,605.66,604.31,0.30359662]
[1745581932285,1.13294887,605.65,604.32,0.30355407]
[1745581932487,1.3662347,605.64,604.31,0.30355407]
[1745581932682,2.49979765,605.63,604.31,0.30355407]
[1745581932884,2.49979765,605.62,604.31,0.30355407]
[1745581933085,1.36684878,605.61,604.31,0.30355407]
[1745581933283,1.36684878,605.6,604.31,0.30355407]
[1745581933486,2.49979765,605.59,604.31,0.30355407]
[1745581933683,1.36684878,605.58,604.3,1.48760568]
[1745581933883,1.13294887,605.57,604.31,0.30356175]
[1745581934186,1.36684878,605.56,604.31,0.30356175]
[1745581934388,1.13294887,605.55,604.31,0.30356175]
[1745581934590,2.49979765,605.54,604.31,0.30356175]
[1745581934789,1.36684878,605.53,604.31,0.30356175]
[1745581934989,1.13294887,605.52,604.31,0.30356175]
[1745581935186,1.36684878,605.51,604.31,0.30356175]
[1745581935387,1.13294887,605.5,604.42,1.0505215]
[1745581935592,1.36684878,605.49,604.43,0.3035908]
[1745581935891,1.36684878,605.49,604.42,1.0505215]
[1745581936190,1.13294887,605.48,604.42,1.0505215]
[1745581936392,1.36684878,605.47,604.42,1.0505215]
[1745581936587,1.36684878,605.46,604.43,0.30363303]
[1745581936786,2.49979765,605.45,604.43,0.30363303]
[1745581936990,1.36684878,605.44,604.42,1.0505215]
[1745581937192,1.13294887,605.43,604.43,0.3036339]
[1745581937387,1.36689255,605.42,604.43,0.3036339]
[1745581937693,2.49984142,605.41,604.43,0.3036339]
[1745581937992,0.60621365,613.07,604.3,1.2]
[1745581937993,2.49984142,605.4,604.35,0.28767344]
[1745581938192,1.36689255,605.39,604.36,0.30364186]
[1745581938393,2.49932968,605.38,604.36,0.30364186]
[1745581938697,1.36638081,605.37,604.36,0.30364186]
[1745581938988,1.13294887,605.36,604.36,0.30364186]
[1745581939193,1.36648348,605.35,604.36,0.30364186]
[1745581939391,1.36648348,605.34,604.36,0.30364186]
[1745581939589,1.36648348,605.33,604.36,0.30364186]
[1745581940193,1.13294887,605.32,604.35,0.28767344]
[1745581940394,1.36648348,605.31,604.36,0.30364218]
[1745581940697,1.13294887,605.3,604.36,0.30364218]
[1745581940993,1.36673706,605.29,604.37,0.30364218]
[1745581941194,2.49968593,605.28,604.37,0.995]
[1745581941398,1.13294887,605.28,604.38,0.30364218]
[1745581941694,1.13294887,605.27,604.37,0.995]
[1745581941894,1.13294887,605.27,604.38,0.30363718]
[1745581942090,1.13294887,605.26,604.38,0.30363718]
[1745581942291,1.13294887,605.26,604.39,2.268]
[1745581942489,1.13294887,605.25,604.4,0.30363718]
[1745581942996,1.13294887,605.24,604.4,0.30363718]
[1745581943596,1.13294887,605.23,604.4,0.30363718]
[1745581944098,1.13294887,605.22,604.4,0.30363718]
[1745581944498,1.13294887,605.21,604.4,0.30363718]
[1745581944900,1.13294887,605.21,604.39,2.268]
[1745581945099,1.13294887,605.21,604.4,0.30363749]
[1745581945299,1.13294887,605.2,604.4,0.30363749]
[1745581945694,1.13294887,605.19,604.4,0.30363749]
[1745581946499,1.13294887,605.18,604.4,0.30363749]
[1745581946994,1.13294887,605.17,604.4,0.30363749]
[1745581947598,1.13294887,605.16,604.4,0.30363749]
[1745581947799,1.13294887,605.16,604.39,2.268]
[1745581947999,1.13294887,605.15,604.39,2.268]
[1745581948498,1.13294887,605.14,604.39,2.268]
[1745581949100,1.13294887,605.13,604.39,2.268]
[1745581949400,1.13294887,605.12,604.39,2.268]
[1745581950098,1.13294887,605.11,604.39,2.268]
[1745581950493,1.13294887,605.1,604.39,2.268]
[1745581951299,1.13294887,605.09,604.39,2.268]
[1745581951696,1.13294887,605.09,604.4,0.30369459]
[1745581952200,1.13294887,605.08,604.4,0.30369459]
[1745581952501,1.13294887,605.07,604.4,1.36369459]
[1745581952698,1.13294887,605.07,604.41,0.30369459]
[1745581953399,1.13294887,605.06,604.41,0.30369459]
[1745581953800,1.13294887,605.06,604.4,1.06]
[1745581954001,1.13294887,605.05,604.4,1.06]
[1745581954393,0.28772815,606.12,604.4,1.06]
[1745581954394,1.13294887,605.04,604.4,1.06]
[1745581955300,1.13294887,605.03,604.4,1.06]
[1745581955702,1.13294887,605.02,604.4,1.06]
[1745581956201,1.13294887,605.01,604.4,1.06]
[1745581956603,1.13294887,605.0,604.4,1.06]
[1745581957103,1.13294887,604.99,604.4,1.06]
[1745581957803,1.13294887,604.98,604.4,1.06]
[1745581958299,1.13294887,604.97,604.4,1.06]
[1745581959205,1.13294887,604.96,604.4,1.06]
[1745581959501,1.13294887,604.95,604.4,1.06]
[1745581959806,1.13294887,604.94,604.4,1.06]
[1745581960509,1.13294887,604.93,604.4,1.06]
[1745581960806,1.13294887,604.92,604.4,1.06]
[1745581961607,1.13294887,604.91,604.4,1.06]
[1745581962107,1.13294887,604.9,604.4,1.06]
[1745581962504,0.28772458,606.21,604.4,1.06]
[1745581962704,2.50547287,606.2,604.4,1.06]
[1745581963002,1.3696689,606.19,604.4,1.06]
[1745581963207,2.50547287,606.18,604.4,1.06]
[1745581963406,1.3696689,606.17,604.4,1.06]
[1745581963606,1.3696689,606.16,604.4,1.06]
[1745581963902,1.3696689,606.15,604.4,1.06]
[1745581964102,1.3696689,606.14,604.4,1.06]
[1745581964306,2.50547287,606.13,604.4,1.06]
[1745581964507,1.3696689,606.12,604.4,1.06]
[1745581964703,1.3696689,606.11,604.4,1.06]
[1745581964905,1.3696689,606.1,604.4,1.06]
[1745581965106,1.3696689,606.09,604.4,1.06]
[1745581965306,2.50547287,606.08,604.4,1.06]
[1745581965507,1.3696689,606.07,604.4,1.06]
[1745581965701,1.36943925,606.06,604.4,1.06]
[1745581966007,1.36949373,606.05,604.4,2.332]
[1745581966207,1.13580397,606.06,604.4,2.332]
[1745581966409,1.36959115,606.05,604.4,2.332]
[1745581966606,1.36955181,606.04,604.4,2.332]
[1745581966807,2.50535578,606.03,604.4,2.332]
[1745581967003,1.36955181,606.02,604.4,2.332]
[1745581967203,1.36955181,606.01,604.4,2.332]
[1745581967403,1.36955181,606.0,604.4,2.332]
[1745581967607,1.36955181,605.99,604.4,2.332]
[1745581967909,2.50535578,605.98,604.4,2.332]
[1745581968109,1.36955181,605.97,604.4,2.332]
[1745581968303,1.36955181,605.96,604.4,2.332]
[1745581968503,1.36955181,605.95,604.4,2.332]
[1745581968704,1.36955181,605.94,604.4,2.332]
[1745581968903,1.36955181,605.93,604.4,2.332]
[1745581969109,1.36955181,605.92,604.4,2.332]
[1745581969305,1.36955181,605.91,604.4,2.332]
[1745581969509,2.50535578,605.9,604.4,2.332]
[1745581969808,1.36955181,605.89,604.4,2.332]
[1745581970009,1.36955181,605.88,604.4,2.332]
[1745581970311,1.36955181,605.87,604.4,2.332]
[1745581970609,1.36955181,605.86,604.4,2.332]
[1745581970810,1.36955181,605.85,604.4,2.332]
[1745581971010,1.36955181,605.84,604.4,2.332]
[1745581971307,2.50535578,605.83,604.4,2.332]
[1745581971513,1.36955181,605.82,604.4,2.332]
[1745581971806,2.50535578,605.81,604.4,2.332]
[1745581972009,1.36955181,605.8,604.4,2.332]
[1745581972204,2.50535578,605.79,604.4,2.332]
[1745581972507,1.36955181,605.78,604.4,2.332]
[1745581972707,2.50535578,605.77,604.4,2.332]
[1745581973012,2.50535578,605.76,604.4,2.332]
[1745581973212,2.50535578,605.75,604.4,2.332]
[1745581973408,1.36955181,605.74,604.41,0.3036467]
[1745581973609,1.36955181,605.73,604.41,0.3036467]
[1745581973806,1.13580397,605.72,604.41,0.3036467]
[1745581974008,2.50540196,605.71,604.41,0.3036467]
[1745581974210,1.36959799,605.7,604.41,0.3036467]
[1745581974411,1.36959799,605.69,604.41,0.3036467]
[1745581974605,1.36959799,605.68,604.41,0.3036467]
[1745581974804,1.36959799,605.67,604.4,2.332]
[1745581975006,1.36959799,605.66,604.41,0.3036485]
[1745581975206,1.36959799,605.65,604.41,0.3036485]
[1745581975405,1.36959799,605.64,604.41,0.3036485]
[1745581975612,1.36959799,605.63,604.41,0.3036485]
[1745581975914,2.50540196,605.62,604.41,0.3036485]
[1745581976110,2.50540196,605.61,604.41,0.3036485]
[1745581976310,1.36959799,605.6,604.41,0.3036485]
[1745581976512,1.36959799,605.59,604.41,0.3036485]
[1745581976711,1.36959799,605.58,604.41,0.3036485]
[1745581976912,1.36959799,605.57,604.41,0.3036485]
[1745581977110,2.50540196,605.56,604.41,0.3036485]
[1745581977317,1.36959799,605.55,604.41,0.3036485]
[1745581977615,1.36959799,605.54,604.41,0.3036485]
[1745581977817,1.36959799,605.53,604.41,0.3036485]
[1745581978014,1.36959799,605.52,604.42,0.30364837]
[1745581978214,1.36959799,605.52,604.4,3.89164728]
[1745581978215,1.36959799,605.51,604.43,0.30364837]
[1745581978414,1.36959799,605.5,604.4,3.89164728]
[1745581978615,2.50540196,605.49,604.41,0.30364695]
[1745581978815,1.36959799,605.48,604.41,0.30364695]
[1745581979015,1.36959799,605.47,604.41,0.30364695]
[1745581979217,2.50540196,605.46,604.4,3.89164728]
[1745581979418,2.50540196,605.45,604.4,3.89164728]
[1745581979711,1.36959799,605.44,604.4,3.604]
[1745581979916,1.36959799,605.43,604.4,3.604]
[1745581980115,1.36959799,605.42,604.4,3.89166274]
[1745581980318,2.50540196,605.41,604.4,3.89166274]
[1745581980617,1.36959799,605.4,604.4,3.89166274]
[1745581980817,1.36959799,605.39,604.4,3.89166274]
[1745581981010,1.36959799,605.38,604.4,3.89166274]
[1745581981217,1.36959799,605.37,604.4,3.89166274]
[1745581981414,1.36959799,605.36,604.4,3.89166274]
[1745581981610,2.50540196,605.35,604.4,3.89166274]
[1745581981811,1.36959799,605.34,604.4,3.89166274]
[1745581982017,1.36959799,605.33,604.4,3.89166274]
[1745581982219,2.50540196,605.32,604.4,3.89166274]
[1745581982413,1.36959799,605.31,604.4,3.89166274]
[1745581982616,2.50540196,605.3,604.4,3.89166274]
[1745581982813,1.36959799,605.29,604.4,3.604]
[1745581983014,1.36959799,605.28,604.4,3.89169009]
[1745581983216,2.50540196,605.27,604.4,3.89169009]
[1745581983417,1.36959799,605.26,604.4,3.89169009]
[1745581983615,1.36959799,605.25,604.4,3.89169009]
[1745581983820,2.50540196,605.24,604.4,3.89169009]
[1745581984013,1.36959799,605.23,604.4,3.89169009]
[1745581984218,1.36915873,605.22,604.4,3.89169009]
[1745581984417,2.5049627,605.21,604.4,3.89169009]
[1745581984718,1.36915873,605.2,604.4,3.89169009]
[1745581985119,1.13580397,605.19,604.4,3.89169009]
[1745581985320,1.36915873,605.18,604.4,3.89169009]
[1745581985617,1.13580397,605.17,604.4,3.89169009]
[1745581985821,1.13580397,605.17,604.4,3.604]
[1745581986020,1.13580397,605.17,604.4,3.89170555]
[1745581986217,1.37002459,605.16,604.4,3.89170555]
[1745581986421,1.13580397,605.17,604.4,3.89170555]
[1745581986616,1.37009611,605.16,604.4,3.89170555]
[1745581986820,1.13580397,605.16,604.4,3.89170555]
[1745581987121,1.37027472,605.15,604.4,3.89170555]
[1745581987321,1.13580397,605.16,604.4,3.89170555]
[1745581987623,2.5060997,605.15,604.4,3.89170555]
[1745581987816,1.13580397,605.15,604.4,3.89170555]
[1745581988019,1.13580397,605.14,604.4,3.89170555]
[1745581988723,1.13580397,605.13,604.4,3.604]
[1745581989119,1.13580397,605.12,604.4,3.89170912]
[1745581989517,1.13580397,605.11,604.4,3.89170912]
[1745581990023,1.13580397,605.1,604.4,3.89170912]
[1745581990324,1.13580397,605.1,604.4,4.83270912]
[1745581990522,1.13580397,605.09,604.4,4.83270912]
[1745581990824,1.13580397,605.08,604.4,4.83270912]
[1745581991122,1.13580397,605.07,604.4,4.83270912]
[1745581991824,1.13580397,605.06,604.4,4.545]
[1745581992020,1.13580397,605.05,604.4,4.83271506]
[1745581992221,1.13580397,605.04,604.4,4.83271506]
[1745581992421,1.13580397,605.04,604.4,3.77271506]
[1745581992823,1.13580397,605.03,604.4,3.77271506]
[1745581993720,1.13580397,605.02,604.4,3.77271506]
[1745581993926,1.13580397,605.02,604.41,0.303565]
[1745581994326,1.13580397,605.01,604.41,0.303565]
[1745581994827,0.28768058,606.33,604.4,2.50071506]
[1745581995028,1.37246966,606.32,604.41,0.30356462]
[1745581995228,2.51067732,606.31,604.41,1.39656462]
[1745581995427,1.37246966,606.3,604.42,0.30356462]
[1745581995728,2.51067732,606.29,604.42,0.30356462]
[1745581995928,1.37246966,606.28,604.42,0.30356462]
[1745581996129,1.37246966,606.27,604.42,0.30356462]
[1745581996332,1.37246966,606.26,604.42,0.30356462]
[1745581996529,1.37246966,606.25,604.42,0.30356462]
[1745581996729,2.51067732,606.24,604.42,0.30356462]
[1745581996931,1.37246966,606.23,604.42,1.11456462]
[1745581997231,2.51067732,606.22,604.43,0.30356462]
[1745581997431,1.37246966,606.21,604.43,0.30356462]
[1745581997729,2.51067732,606.2,604.43,0.30356462]
[1745581997932,1.37246966,606.19,604.43,0.30356462]
[1745581998135,1.13820766,606.2,604.43,0.30356462]
[1745581998136,2.51067732,606.18,604.43,0.30356462]
[1745581998336,1.37246966,606.17,604.43,0.30356462]
[1745581998538,2.51067732,606.16,604.43,0.30356462]
[1745581998834,1.37149799,606.15,604.43,0.30356462]
[1745581999028,1.37149799,606.14,604.43,0.30356462]
[1745581999228,1.37149799,606.13,604.43,0.30356462]
[1745581999531,1.37149799,606.12,604.43,0.30356462]
[1745581999730,1.37149799,606.11,604.43,0.30356462]
[1745581999927,1.37149799,606.1,604.43,0.30356462]
[1745582000128,1.37149799,606.09,604.43,0.30356462]
[1745582000332,1.37149799,606.08,604.43,0.30356462]
[1745582000628,1.13820766,606.07,604.43,0.30356462]
[1745582000833,1.37110218,606.06,604.43,0.30356462]
[1745582001032,1.37110218,606.05,604.43,1.24656462]
[1745582001231,2.50930984,606.04,604.44,0.30356609]
[1745582001431,1.37110218,606.03,604.44,0.30356609]
[1745582001629,1.37110218,606.02,604.44,0.30356609]
[1745582001827,2.50930984,606.01,604.44,0.30356609]
[1745582002033,1.37110218,606.0,604.44,0.30356609]
[1745582002233,1.37110218,605.99,604.44,0.30356609]
[1745582002432,1.13820766,605.98,604.44,0.30356609]
[1745582002628,1.37066225,605.97,604.44,0.30356609]
[1745582002834,1.37066225,605.96,604.44,0.30356609]
[1745582003028,1.37066225,605.95,604.44,0.30356609]
[1745582003328,1.37066225,605.94,604.44,0.30356609]
[1745582003533,1.37066225,605.93,604.44,0.30356609]
[1745582003733,2.50886991,605.92,604.44,0.30356609]
[1745582003931,1.37066225,605.91,604.44,0.30356609]
[1745582004234,1.13820766,605.92,604.44,0.30356609]
[1745582004436,0.28757122,606.33,604.44,0.30356609]
[1745582004437,1.13820766,605.9,604.44,0.30356609]
[1745582004633,1.3704564,605.89,604.44,0.30356609]
[1745582004835,2.50866406,605.88,604.44,0.30356609]
[1745582005034,1.3704564,605.87,604.44,0.30356609]
[1745582005229,1.3704564,605.86,604.44,0.30356609]
[1745582005534,2.50866406,605.85,604.44,0.30356609]
[1745582005734,1.3704564,605.84,604.44,0.30356609]
[1745582005935,1.3704564,605.83,604.44,0.30356609]
[1745582006131,1.3704564,605.82,604.44,0.30356609]
[1745582006337,2.50866406,605.81,604.44,0.30356609]
[1745582006536,1.3704564,605.8,604.44,0.30356609]
[1745582006737,1.3704564,605.79,604.44,0.30356609]
[1745582006930,1.3704564,605.78,604.44,0.30356609]
[1745582007130,1.3704564,605.77,604.44,0.30356609]
[1745582007333,1.3704564,605.76,604.44,0.30356609]
[1745582007634,1.3704564,605.75,604.44,0.30356609]
[1745582007936,1.36934714,605.74,604.44,0.30356609]
[1745582008130,2.5075548,605.73,604.44,0.30356609]
[1745582008332,1.36934714,605.72,604.44,0.30356609]
[1745582008534,2.5075548,605.71,604.44,0.30356609]
[1745582008735,1.36934714,605.7,604.44,0.30356609]
[1745582008937,1.36934714,605.69,604.44,0.30356609]
[1745582009132,1.36934714,605.68,604.44,0.30356609]
[1745582009334,1.36934714,605.67,604.44,0.30356609]
[1745582009537,1.36934714,605.66,604.44,0.30356609]
[1745582009732,1.36934714,605.65,604.44,0.30356609]
[1745582009936,1.36934714,605.64,604.44,0.30356609]
[1745582010139,1.36934714,605.63,604.44,0.30356609]
[1745582010438,1.36934714,605.62,604.45,0.30355601]
[1745582010642,1.36934714,605.61,604.44,0.30355601]
[1745582010834,1.36934714,605.61,604.43,1.23057122]
[1745582010835,1.36934714,605.6,604.45,0.30355601]
[1745582011032,2.5075548,605.59,604.44,0.30355601]
[1745582011235,1.36934714,605.58,604.45,0.30355601]
[1745582011436,1.36934714,605.57,604.44,0.30355601]
[1745582011732,1.36934714,605.56,604.45,0.30355601]
[1745582011932,1.36934714,605.55,604.43,1.23057122]
[1745582012139,1.36934714,605.54,604.44,0.30356241]
[1745582012434,2.5075548,605.53,604.44,0.30356241]
[1745582012638,1.36934714,605.52,604.44,0.30356241]
[1745582012938,2.5075548,605.51,604.44,0.30356241]
[1745582013145,2.5075548,605.5,604.44,0.30356241]
[1745582013439,1.36934714,605.49,604.43,1.23061638]
[1745582013641,1.36934714,605.48,604.44,0.30356724]
[1745582013838,2.5075548,605.47,604.44,0.30356724]
[1745582014039,1.36934714,605.46,604.44,0.30356724]
[1745582014236,2.5075548,605.45,604.44,0.30356724]
[1745582014439,1.36934714,605.44,604.44,0.30356724]
[1745582014637,1.36934714,605.43,604.44,0.30356724]
[1745582014838,1.36934714,605.42,604.44,0.30356724]
[1745582015035,1.36934714,605.41,604.44,0.30356724]
[1745582015239,1.3684233,605.4,604.44,0.30356724]
[1745582015440,1.3684233,605.39,604.44,0.30356724]
[1745582015742,2.50663096,605.38,604.44,0.30356724]
[1745582015936,2.50663096,605.37,604.44,0.30356724]
[1745582016138,1.3684233,605.36,604.44,0.30356724]
[1745582016338,2.50663096,605.35,604.44,0.30356724]
[1745582016537,1.3684233,605.34,604.44,0.30356724]
[1745582016741,2.50663096,605.33,604.44,0.30356724]
[1745582016945,2.50663096,605.32,604.44,0.30356724]
[1745582017137,1.3684233,605.31,604.44,0.30356724]
[1745582017341,1.13820766,605.32,604.44,0.30356724]
[1745582017538,1.13820766,605.31,604.44,0.30356724]
[1745582017838,1.13820766,605.3,604.44,0.30356724]
[1745582018538,1.13820766,605.29,604.44,0.30356724]
[1745582019339,1.13820766,605.28,604.45,1.165]